bitfinex-derivatives/quotes_ETHF0:USTF0_20250520
["timestamp","ask_amount","ask_price","bid_price","bid_amount"]
[1747721845221,2.0267,2545.6,2545.5,9.20144]
[1747721846321,0.6495,2545.7,2545.6,0.78542]
[1747721846915,0.6495,2545.7,2545.5,9.20143]
[1747721847124,1.3719,2545.6,2545.5,9.20143]
[1747721849124,0.6495,2545.7,2545.6,0.78542]
[1747721849319,0.6495,2545.7,2545.6,2.05502]
[1747721850224,0.78518,2546.4,2545.6,1.2696]
[1747721850423,1.43278,2546.4,2545.7,3.2078]
[1747721850619,1.43278,2546.4,2546.1,0.78525]
[1747721850818,0.6476,2546.4,2546.2,0.78523]
[1747721851514,1.2873,2546.4,2546.2,0.78523]
[1747721852220,2.5577,2546.4,2546.2,0.78523]
[1747721852729,1.27629611,2546.3,2546.2,9.20123]
[1747721853227,3.2078,2546.9,2546.8,0.78505]
[1747721853420,3.2078,2546.9,2546.6,9.20109]
[1747721853618,1.2704,2546.8,2546.6,8.416]
[1747721853825,1.2704,2546.8,2546.6,9.2011]
[1747721854025,0.6249,2546.7,2546.6,9.2011]
[1747721854719,1.2489,2546.7,2546.6,9.2011]
[1747721855735,0.624,2546.7,2546.6,9.2011]
[1747721855924,1.2704,2546.8,2546.7,0.78508]
[1747721856124,1.2704,2546.8,2546.7,2.04988]
[1747721856316,0.63249611,2546.9,2546.8,0.78505]
[1747721856627,0.63249611,2546.9,2546.8,2.04985]
[1747721856828,1.91429611,2546.9,2546.8,2.04985]
[1747721857128,1.91429611,2546.9,2546.8,0.78505]
[1747721858530,1.91429611,2546.9,2546.8,3.99285]
[1747721858730,0.00589611,2546.9,2546.8,3.99285]
[1747721859026,0.00589611,2546.9,2546.8,4.62905]
[1747721860124,0.00589611,2546.9,2546.8,9.62905]
[1747721860524,0.6741,2547.5,2547.4,0.78486]
[1747721860721,0.6741,2547.5,2547.3,9.19888]
[1747721860923,0.6818,2547.4,2547.3,9.19888]
[1747721861122,0.6818,2547.4,2547.3,10.53248]
[1747721861333,2.0191,2547.4,2547.3,10.53248]
[1747721861933,0.6741,2547.5,2547.4,0.78486]
[1747721862135,0.6741,2547.5,2547.4,2.11846]
[1747721862323,0.00589611,2547.6,2547.5,0.78483]
[1747721862522,0.00589611,2547.6,2547.5,2.11843]
[1747721862725,1.34319611,2547.6,2547.5,2.11843]
[1747721863028,1.34319611,2547.6,2547.5,5.32623]
[1747721863528,0.00589611,2547.6,2547.5,5.32623]
[1747721865235,0.624,2548.2,2547.9,0.7847]
[1747721865236,1.40863,2548.2,2547.9,0.7847]
[1747721865437,0.624,2548.2,2547.5,4.5414]
[1747721865729,0.78473,2547.9,2547.6,9.19778]
[1747721865929,0.624,2548.2,2547.7,0.78477]
[1747721866134,0.674,2547.8,2547.7,0.00589611]
[1747721866633,2.5836,2547.8,2547.7,0.00589611]
[1747721866838,2.5836,2547.8,2547.7,0.79066611]
[1747721867027,2.5836,2547.8,2547.7,0.00589611]
[1747721867537,2.5836,2547.8,2547.7,0.79066611]
[1747721872141,0.00385915,2548.2,2548.1,0.78465]
[1747721872441,1.88175915,2548.2,2548.1,0.78465]
[1747721873141,1.88175915,2548.2,2548.1,2.11775]
[1747721873337,2.66637915,2548.2,2548.0,9.17766]
[1747721873542,1.939,2548.1,2548.0,8.393]
[1747721873738,2.72365,2548.1,2548.0,8.393]
[1747721874044,1.939,2548.1,2548.0,9.17768]
[1747721874841,1.939,2548.1,2548.0,8.393]
[1747721876040,1.94356306,2548.1,2548.0,8.393]
[1747721876442,0.78921306,2548.1,2548.0,9.17768]
[1747721876642,0.00456306,2548.1,2548.0,10.55988]
[1747721876844,1.29246306,2548.1,2548.0,10.55988]
[1747721877045,2.07711306,2548.1,2548.0,10.55988]
[1747721877245,1.29246306,2548.1,2548.0,2.16688]
[1747721877447,2.07711306,2548.1,2548.0,1.3822]
[1747721877653,0.78468,2548.0,2547.8,0.78474]
[1747721877852,0.6462,2547.9,2547.8,0.78474]
[1747721878044,0.6462,2547.9,2547.8,9.17674]
[1747721878253,1.9341,2547.9,2547.8,9.17674]
[1747721878856,2.71881,2547.9,2547.8,8.392]
[1747721879058,1.9341,2547.9,2547.8,8.392]
[1747721879355,1.9341,2547.9,2547.8,12.38454]
[1747721879556,1.9341,2547.9,2547.8,12.9104]
[1747721879854,2.71881,2547.9,2547.8,12.9104]
[1747721880159,2.71881,2547.9,2547.8,11.5998]
[1747721880458,2.71881,2547.9,2547.8,3.2078]
[1747721880945,0.00456306,2548.1,2547.8,3.2078]
[1747721881145,0.00456306,2548.1,2548.0,0.78468]
[1747721881366,0.00456306,2548.1,2548.0,9.17668]
[1747721882360,0.00456306,2548.1,2548.0,10.50888]
[1747721883856,3.2078,2548.9,2548.8,0.78443]
[1747721884054,1.2971,2549.1,2548.5,3.2078]
[1747721884259,1.2971,2549.1,2549.0,0.78437]
[1747721884759,1.2971,2549.1,2549.0,9.17537]
[1747721885054,1.2971,2549.1,2549.0,8.391]
[1747721885556,1.2971,2549.1,2549.0,0.78437]
[1747721885749,2.5655,2549.1,2549.0,0.78437]
[1747721886053,1.8994,2549.1,2548.9,10.43698]
[1747721886245,2.68375,2549.1,2548.9,8.391]
[1747721886453,1.8994,2549.1,2548.9,8.391]
[1747721886653,1.8994,2549.1,2549.0,0.78437]
[1747721886855,1.8994,2549.1,2549.0,1.2616]
[1747721887054,1.8994,2549.1,2549.0,2.04597]
[1747721887759,3.2078,2549.4,2549.1,0.78432]
[1747721887960,3.2078,2549.4,2549.2,1.3305]
[1747721888161,1.373,2549.3,2549.2,2.11481]
[1747721889361,0.6668,2549.4,2549.3,0.78428]
[1747721889561,0.6668,2549.4,2549.3,10.50478]
[1747721889765,3.99194,2549.8,2549.4,0.78424]
[1747721890061,1.373,2549.6,2549.4,2.11474]
[1747721890255,1.373,2549.6,2549.4,1.3305]
[1747721890455,1.373,2549.6,2549.3,9.17426]
[1747721891058,1.373,2549.6,2549.5,0.78422]
[1747721891558,3.2078,2550.1,2550.0,0.78406]
[1747721891764,0.6573,2550.3,2550.1,0.78402]
[1747721892355,0.6573,2550.3,2550.2,0.784]
[1747721892663,1.44128,2550.3,2549.9,0.78408]
[1747721892863,1.994,2550.2,2549.9,0.78408]
[1747721893165,0.78403,2550.1,2549.8,0.78411]
[1747721893460,1.3381,2550.0,2549.7,10.44264]
[1747721893960,2.12216,2550.0,2549.7,9.6585]
[1747721894160,1.3381,2550.0,2549.7,10.44264]
[1747721894562,0.7841,2549.9,2549.7,9.6585]
[1747721894758,1.3381,2550.0,2549.5,3.2078]
[1747721894956,2.79104,2549.8,2549.6,8.388]
[1747721895156,0.78404,2550.1,2549.8,0.78411]
[1747721895459,2.78644,2550.1,2549.8,0.78411]
[1747721895659,2.0024,2550.1,2549.7,1.2528]
[1747721895857,2.78646,2550.1,2549.7,1.2528]
[1747721896062,2.78643,2550.1,2549.8,0.78411]
[1747721896363,2.78643,2550.1,2549.7,1.2528]
[1747721896364,0.6249,2550.1,2550.0,0.78406]
[1747721896663,2.0024,2550.1,2550.0,0.78406]
[1747721896853,2.0024,2550.1,2549.9,0.78408]
[1747721897059,0.6249,2550.1,2550.0,8.387]
[1747721897261,0.6294,2550.2,2550.0,8.387]
[1747721897462,0.6294,2550.2,2550.0,9.6763]
[1747721897666,0.6294,2550.2,2550.1,0.78403]
[1747721899761,2.0591,2550.4,2550.0,9.6763]
[1747721900162,0.689,2550.3,2550.2,0.784]
[1747721900365,2.0106,2550.3,2550.2,0.784]
[1747721901567,0.6817,2550.4,2550.3,0.78397]
[1747721901865,3.52457917,2551.2,2550.2,3.2078]
[1747721902068,1.997,2550.7,2550.4,0.00588443]
[1747721902367,0.78391,2550.5,2550.4,0.00588443]
[1747721902569,0.6494,2550.6,2550.4,0.00588443]
[1747721902770,1.3216,2550.5,2550.4,0.78982443]
[1747721903258,0.6754,2550.7,2550.4,3.21368443]
[1747721903568,1.9562,2550.6,2550.4,0.00588443]
[1747721903769,1.9562,2550.6,2550.5,0.78391]
[1747721904166,2.74009,2550.6,2550.4,0.78981443]
[1747721904363,1.9562,2550.6,2550.4,0.78979443]
[1747721904664,1.9562,2550.6,2550.4,0.00588443]
[1747721905363,2.74009,2550.6,2550.4,0.78980443]
[1747721905561,1.9562,2550.6,2550.4,0.78980443]
[1747721905758,1.9562,2550.6,2550.4,0.00588443]
[1747721905963,1.9562,2550.6,2550.5,0.78391]
[1747721908165,1.9562,2550.6,2550.4,0.00588443]
[1747721908372,0.78391,2550.5,2550.4,0.00588443]
[1747721908573,1.2956,2550.5,2550.4,0.78982443]
[1747721912875,0.6754,2550.7,2550.4,3.21368443]
[1747721913176,0.6754,2550.7,2550.6,0.78388]
[1747721914177,1.8766,2550.8,2550.7,0.78385]
[1747721914671,0.6399,2550.9,2550.8,0.78382]
[1747721914870,1.8766,2551.1,2551.0,0.78376]
[1747721915877,1.3068,2551.3,2551.2,0.78369]
[1747721916469,0.6334,2551.4,2551.3,0.78366]
[1747721916872,1.9402,2551.4,2551.3,0.78366]
[1747721917177,0.4855,2551.4,2551.1,0.78372]
[1747721917482,0.4855,2551.4,2551.2,10.46398]
[1747721917680,1.26915,2551.4,2551.2,9.6803]
[1747721917881,0.4855,2551.4,2551.3,0.78366]
[1747721918179,0.4855,2551.4,2551.2,1.3163]
[1747721918374,0.4855,2551.4,2551.2,10.46397]
[1747721919281,0.7838,2550.9,2550.7,0.78383]
[1747721919476,0.6458,2550.8,2550.7,0.78385]
[1747721919981,3.2078,2551.0,2550.9,0.78379]
[1747721920683,3.2078,2551.3,2551.2,0.78369]
[1747721920879,5.37017,2551.3,2551.1,0.78371]
[1747721921073,4.5865,2551.3,2551.2,0.78369]
[1747721921381,4.5865,2551.3,2551.1,0.78371]
[1747721921883,5.37017,2551.3,2551.1,0.78371]
[1747721922180,4.5865,2551.3,2551.2,0.78369]
[1747721923083,3.2078,2551.3,2550.9,1.3724]
[1747721923281,3.2078,2551.3,2551.2,0.78369]
[1747721924585,1.325,2551.4,2551.3,0.78366]
[1747721925387,0.78356,2551.7,2551.2,3.2078]
[1747721925583,2.05477,2551.6,2551.4,0.78362]
[1747721926184,1.2712,2551.6,2551.3,1.2799]
[1747721926388,0.78363,2551.4,2551.3,0.78366]
[1747721926889,0.78368,2551.3,2551.2,0.78368]
[1747721927386,0.78364,2551.4,2551.3,0.78365]
[1747721928281,3.99142,2551.5,2551.4,0.78363]
[1747721928783,0.78364,2551.4,2551.3,0.78365]
[1747721929189,0.78365,2551.4,2551.1,1.2799]
[1747721929687,0.78365,2551.4,2551.3,0.78366]
[1747721929890,0.78364,2551.4,2551.3,0.78365]
[1747721931595,3.99142,2551.5,2551.4,0.78363]
[1747721932087,3.2078,2551.5,2551.4,0.78363]
[1747721932488,0.78366,2551.4,2551.1,1.2799]
[1747721932690,3.2078,2551.5,2551.4,0.78363]
[1747721932889,3.99143,2551.5,2551.3,0.78364]
[1747721933089,3.99143,2551.5,2551.4,0.78363]
[1747721933585,3.2078,2551.5,2551.4,0.78363]
[1747721933784,1.2712,2551.6,2551.5,0.7836]
[1747721934083,0.78364,2551.4,2551.2,4.4916]
[1747721934289,0.78361,2551.5,2551.4,0.78362]
[1747721935095,0.78361,2551.5,2551.4,0.78363]
[1747721935695,0.78363,2551.4,2551.3,2.06745]
[1747721935895,0.78361,2551.5,2551.4,0.78362]
[1747721936493,0.78363,2551.4,2551.3,2.06744]
[1747721936790,0.78363,2551.4,2551.3,2.06746]
[1747721937197,1.95901,2551.5,2550.9,12.9144]
[1747721937497,0.78369,2551.3,2551.2,0.78369]
[1747721937705,0.78372,2551.2,2551.1,0.78372]
[1747721938098,0.78369,2551.3,2551.2,0.78368]
[1747721938997,0.78371,2551.2,2551.1,0.7837]
[1747721940691,1.95932,2551.1,2550.5,3.2078]
[1747721940996,3.2078,2550.9,2550.4,0.78980443]
[1747721941293,0.78391,2550.6,2550.4,0.78980443]
[1747721941486,2.11871,2550.5,2550.4,0.00588443]
[1747721941897,2.11871,2550.5,2550.4,0.78982443]
[1747721942095,2.11871,2550.5,2550.4,0.00588443]
[1747721942296,1.3348,2550.5,2550.4,0.78982443]
[1747721942596,2.11871,2550.5,2550.4,0.78982443]
[1747721942798,3.40641,2550.5,2550.4,0.78982443]
[1747721943092,6.14641,2550.5,2550.4,0.78982443]
[1747721943597,6.14641,2550.5,2550.4,0.00588443]
[1747721943892,9.35421,2550.5,2550.4,0.00588443]
[1747721944099,14.35421,2550.5,2550.4,0.00588443]
[1747721944495,6.14641,2550.5,2550.4,0.00588443]
[1747721945307,9.35421,2550.5,2550.4,0.00588443]
[1747721947505,17.49,2550.5,2549.3,3.2078]
[1747721947804,0.78431,2549.2,2548.8,11.5568]
[1747721947998,0.78431,2549.2,2549.1,3.21418061]
[1747721948199,0.7843,2549.3,2549.1,3.99850061]
[1747721948498,0.78429,2549.3,2549.2,0.78431]
[1747721948698,0.78431,2549.2,2549.1,1.95188061]
[1747721948899,2.15531,2549.2,2549.1,1.95188061]
[1747721949299,3.2136455,2549.5,2549.1,1.95188061]
[1747721949300,2.74,2549.3,2549.2,0.78431]
[1747721949511,2.74,2549.3,2549.2,2.04881]
[1747721950302,2.74,2549.3,2548.9,2.61794443]
[1747721950303,0.7843,2549.3,2549.1,0.78434]
[1747721950505,1.371,2549.2,2549.1,0.78434]
[1747721951518,2.15531,2549.2,2549.1,0.78434]
[1747721951700,1.371,2549.2,2549.1,0.78434]
[1747721952510,0.78427,2549.4,2549.0,1.2645]
[1747721952511,0.78425,2549.4,2549.2,0.78429]
[1747721952707,2.03985,2549.4,2549.2,0.78429]
[1747721953012,1.2556,2549.4,2549.1,0.78431]
[1747721953204,0.78429,2549.3,2549.1,0.78431]
[1747721953806,0.78429,2549.3,2549.2,0.78431]
[1747721954000,0.78433,2549.2,2549.1,0.78432]
[1747721954204,1.2556,2549.4,2549.0,2.04886]
[1747721954205,0.78434,2549.1,2549.0,2.04886]
[1747721954513,0.78437,2549.0,2548.9,0.79028443]
[1747721954712,0.78437,2549.0,2548.9,0.00588443]
[1747721954911,1.46667,2549.0,2548.9,0.00588443]
[1747721955107,4.83237,2549.0,2548.9,0.00588443]
[1747721955809,4.048,2549.0,2548.9,0.79028443]
[1747721956201,1.308,2549.0,2548.9,0.79028443]
[1747721957509,2.6454,2549.0,2548.9,0.79028443]
[1747721957710,3.42977,2549.0,2548.9,0.79028443]
[1747721957910,2.6454,2549.0,2548.9,0.79028443]
[1747721959313,3.42977,2549.0,2548.9,0.79028443]
[1747721960316,3.42977,2549.0,2548.9,0.00588443]
[1747721962111,5.3854,2549.0,2548.4,3.2078]
[1747721962313,5.3854,2549.0,2548.9,0.7844]
[1747721962803,4.048,2549.0,2548.9,0.7844]
[1747721963006,2.74,2549.0,2548.9,0.7844]
[1747721963213,0.0058455,2549.5,2549.4,0.78425]
[1747721963920,0.0058455,2549.5,2549.4,2.15575]
[1747721966019,0.78399,2550.3,2550.0,0.78406]
[1747721966317,5.116,2550.4,2550.1,1.3715]
[1747721966518,2.04399,2550.3,2550.1,1.3715]
[1747721966716,0.784,2550.2,2550.1,1.3715]
[1747721967116,0.78406,2550.0,2549.9,0.00588443]
[1747721967617,0.78406,2550.0,2549.9,1.35928443]
[1747721967917,2.05175,2550.1,2549.9,1.35928443]
[1747721969017,0.78406,2550.0,2549.9,1.35928443]
[1747721969611,2.05175,2550.1,2549.9,2.14337443]
[1747721970014,0.78406,2550.0,2549.9,0.00588443]
[1747721970217,2.05096,2550.0,2549.9,0.00588443]
[1747721971117,4.79096,2550.0,2549.9,0.00588443]
[1747721972019,4.79096,2550.0,2549.9,1.26958443]
[1747721972918,2.74,2550.0,2549.9,2.05367443]
[1747721973217,3.99183,2550.1,2550.0,0.78406]
[1747721973406,3.2078,2550.1,2550.0,2.05316]
[1747721973613,3.99183,2550.1,2550.0,1.2691]
[1747721974317,0.78406,2550.0,2549.9,0.00588443]
[1747721974519,2.76666,2550.0,2549.9,0.00588443]
[1747721975215,5.50666,2550.0,2549.9,0.00588443]
[1747721978227,0.78422,2549.5,2549.4,1.2691]
[1747721978523,0.78428,2549.3,2549.2,1.418]
[1747721978920,0.78428,2549.3,2549.2,0.6337]
[1747721979121,0.78431,2549.2,2549.1,1.2869]
[1747721979316,2.05741,2549.2,2549.1,1.2869]
[1747721980931,0.78434,2549.1,2549.0,3.21368443]
[1747721981233,2.05744,2549.1,2549.0,0.00588443]
[1747721982131,4.79744,2549.1,2549.0,0.00588443]
[1747721986329,9.0131,2549.1,2548.5,3.99232]
[1747721986535,0.78449,2548.6,2548.5,3.99232]
[1747721987838,0.78449,2548.6,2548.5,5.36742]
[1747721988039,0.78449,2548.6,2548.5,4.5829]
[1747721988433,0.78449,2548.6,2548.5,5.36743]
[1747721988634,0.78449,2548.6,2548.5,4.5829]
[1747721989241,2.05539,2548.6,2548.5,5.36743]
[1747721989430,0.78449,2548.6,2548.5,5.36743]
[1747721989638,0.00588443,2548.8,2548.7,0.78446]
[1747721993646,0.79031443,2548.8,2548.7,0.78446]
[1747721993843,0.00588443,2548.8,2548.6,0.78447]
[1747721994145,0.78449,2548.7,2548.6,0.78448]
[1747721994345,0.78449,2548.6,2548.5,12.31131]
[1747721995147,0.78449,2548.6,2548.5,3.99231]
[1747721996044,0.78449,2548.6,2548.5,0.78453]
[1747721996243,0.78448,2548.7,2548.6,0.78448]
[1747721996442,0.78456,2548.4,2548.3,0.00588443]
[1747721996651,3.99236,2548.4,2548.3,0.00588443]
[1747721997242,8.10066,2548.4,2548.3,0.00588443]
[1747721998247,2.15286,2548.4,2548.3,0.00588443]
[1747721998642,5.36066,2548.4,2548.3,0.00588443]
[1747721999250,8.10066,2548.4,2548.3,0.00588443]
[1747722000249,8.10066,2548.4,2548.3,4.43e-06]
[1747722000448,13.10066,2548.4,2548.3,4.43e-06]
[1747722001245,0.78483,2547.5,2547.4,1.95188061]
[1747722001550,3.99263,2547.5,2547.4,1.95188061]
[1747722002154,0.78493,2547.2,2547.1,2.59467689]
[1747722002340,3.99273,2547.2,2547.1,2.59467689]
[1747722002952,3.2078,2547.2,2546.9,0.00588443]
[1747722003147,0.78499,2547.0,2546.9,0.00588443]
[1747722005653,2.05468,2547.1,2546.9,0.79090443]
[1747722005847,1.2697,2547.1,2546.9,0.00588443]
[1747722006047,0.78499,2547.0,2546.9,0.00588443]
[1747722007541,1.2697,2547.1,2546.9,0.00588443]
[1747722007542,0.78497,2547.1,2546.9,0.79087443]
[1747722007942,0.78491,2547.3,2546.9,0.00588443]
[1747722008156,0.78491,2547.3,2547.1,0.78494]
[1747722008355,0.78496,2547.1,2547.0,0.6266]
[1747722008655,0.78499,2547.0,2546.9,0.00588443]
[1747722008856,2.67199,2547.0,2546.9,0.00588443]
[1747722009048,5.87979,2547.0,2546.9,0.00588443]
[1747722009945,3.99279,2547.0,2546.9,0.00588443]
[1747722010146,3.2078,2547.0,2546.9,0.79090443]
[1747722011546,0.78492,2547.2,2547.0,0.78496]
[1747722011751,0.78492,2547.2,2547.1,0.78496]
[1747722012352,0.78492,2547.3,2547.1,0.78496]
[1747722012555,0.78492,2547.3,2547.2,1.3542]
[1747722013553,0.00588443,2547.4,2547.2,1.3542]
[1747722013763,3.2078,2548.0,2547.3,11.5328]
[1747722014056,0.78468,2548.0,2547.8,0.78473]
[1747722014254,0.78468,2548.0,2547.9,1.3542]
[1747722015560,1.96174,2548.0,2547.3,8.325]
[1747722015861,2.5678,2547.9,2547.4,1.3709]
[1747722016162,0.78483,2547.5,2547.4,1.3709]
[1747722016364,0.78483,2547.5,2547.4,2.15576]
[1747722017462,0.78482,2547.6,2547.5,0.78483]
[1747722018168,2.5678,2547.9,2547.4,4.5787]
[1747722018358,3.35253,2547.9,2547.7,0.78475]
[1747722018668,2.5678,2547.9,2547.8,2.11394]
[1747722018852,3.35251,2547.9,2547.8,1.3292]
[1747722019055,1.41761,2547.9,2547.8,2.11394]
[1747722019351,1.41761,2547.9,2547.8,1.3292]
[1747722020163,0.78471,2547.9,2547.8,1.3292]
[1747722020562,0.78481,2547.6,2547.4,3.99264]
[1747722020761,0.78481,2547.6,2547.5,1.3292]
[1747722020961,0.78479,2547.7,2547.5,1.3292]
[1747722021158,0.7848,2547.6,2547.5,1.3292]
[1747722023164,0.7848,2547.6,2547.5,2.11403]
[1747722023568,0.7848,2547.6,2547.5,1.3292]
[1747722023864,0.78486,2547.4,2547.3,8.325]
[1747722024266,1.2939,2547.5,2547.2,1.2684]
[1747722024267,0.78489,2547.3,2547.2,1.2684]
[1747722025170,4.76989,2547.3,2547.2,1.2684]
[1747722025680,3.52489,2547.3,2547.2,1.2684]
[1747722025969,2.74,2547.3,2547.2,18.56712]
[1747722026159,0.78481,2547.6,2547.2,17.7822]
[1747722026358,0.78481,2547.6,2547.5,0.78482]
[1747722027065,0.78483,2547.5,2547.4,0.78485]
[1747722027271,0.7848,2547.7,2547.5,2.13612]
[1747722027464,0.7848,2547.7,2547.6,0.6292]
[1747722027666,0.7848,2547.7,2547.6,1.2555]
[1747722028374,0.78489,2547.3,2547.2,3.2078]
[1747722028667,0.78492,2547.2,2547.1,1.2925]
[1747722028861,0.78499,2547.0,2546.9,0.00588443]
[1747722029060,3.99279,2547.0,2546.9,0.00588443]
[1747722029462,4.4772,2547.0,2546.9,0.00588443]
[1747722029672,1.46725,2547.2,2547.0,0.78499]
[1747722029869,1.46725,2547.2,2547.1,1.2925]
[1747722030774,0.78499,2547.0,2546.9,0.00588443]
[1747722030964,0.78499,2547.0,2546.9,1.31548443]
[1747722031671,2.03077,2547.1,2546.9,2.10047443]
[1747722031866,1.46725,2547.2,2547.0,0.78499]
[1747722032064,1.46725,2547.2,2547.1,1.3096]
[1747722033773,0.6823,2547.2,2547.1,2.09456]
[1747722034168,0.78492,2547.3,2547.1,2.09456]
[1747722034369,0.78492,2547.3,2547.2,1.2897]
[1747722034571,1.2458,2547.4,2547.2,1.2897]
[1747722034769,0.78489,2547.3,2547.2,1.2897]
[1747722036772,0.78499,2547.0,2546.9,0.00588443]
[1747722037872,2.05869,2547.0,2546.9,0.00588443]
[1747722038278,4.79869,2547.0,2546.9,0.00588443]
[1747722038778,9.79869,2547.0,2546.9,4.43e-06]
[1747722040590,0.78526,2546.1,2546.0,3.2078]
[1747722040879,1.96292,2546.5,2545.8,2.11793]
[1747722041177,0.78532,2545.9,2545.8,1.3326]
[1747722041781,6.52316,2546.3,2545.7,12.7874]
[1747722041782,0.78535,2545.8,2545.7,3.2078]
[1747722042184,0.78545,2545.5,2545.4,2.59467689]
[1747722042382,3.2078,2545.5,2545.2,1.3326]
[1747722042778,3.99325,2545.5,2545.3,0.78549]
[1747722042986,3.99325,2545.5,2545.4,1.3341]
[1747722044086,3.2078,2545.5,2545.4,1.3341]
[1747722044285,3.2078,2545.5,2545.4,2.11958]
[1747722044484,0.6389,2545.7,2545.5,0.78543]
[1747722044689,0.6389,2545.7,2545.5,1.3341]
[1747722044889,0.6389,2545.7,2545.5,2.11955]
[1747722045087,1.42431,2545.7,2545.5,1.3341]
[1747722045391,0.6389,2545.7,2545.2,0.00588443]
[1747722045587,0.78547,2545.5,2545.2,1.33998443]
[1747722045784,2.04698,2545.4,2545.2,1.33998443]
[1747722046385,2.04698,2545.4,2545.2,2.12551443]
[1747722046592,2.04699,2545.4,2545.2,2.12552443]
[1747722047092,1.2615,2545.4,2545.3,1.3706]
[1747722047894,3.2078,2545.5,2545.3,1.3706]
[1747722048291,3.2078,2545.5,2545.3,2.15609]
[1747722048684,3.99325,2545.5,2545.3,1.3706]
[1747722048886,5.37485,2545.5,2545.3,1.3706]
[1747722049094,0.78548,2545.4,2545.3,1.3706]
[1747722049287,2.16708,2545.4,2545.2,0.00588443]
[1747722049593,0.78551,2545.3,2545.2,0.00588443]
[1747722050089,5.0,2545.3,2544.6,8.311]
[1747722050394,0.78558,2545.1,2544.7,0.78569]
[1747722050596,4.5894,2545.2,2544.8,1.2643]
[1747722050597,0.78563,2544.9,2544.8,1.2643]
[1747722051189,1.3816,2545.0,2544.8,2.04995]
[1747722051385,0.6845,2545.1,2544.8,1.2643]
[1747722051792,2.85168,2545.1,2544.8,2.04995]
[1747722051990,2.85168,2545.1,2544.8,1.2643]
[1747722052291,0.78563,2544.9,2544.8,1.2643]
[1747722052681,0.78563,2544.9,2544.6,0.78962295]
[1747722052885,0.78563,2544.9,2544.6,2.10322295]
[1747722053091,2.8517,2545.1,2544.6,1.31752295]
[1747722053287,2.0661,2545.1,2544.7,1.3136]
[1747722053491,0.78562,2545.0,2544.7,2.09929]
[1747722053684,2.10043,2544.9,2544.7,2.09929]
[1747722053881,2.10043,2544.9,2544.7,1.3136]
[1747722054189,2.10045,2544.9,2544.7,1.3136]
[1747722054581,0.78566,2544.8,2544.6,0.00392295]
[1747722054783,2.10046,2544.8,2544.6,2.10324295]
[1747722055487,2.10046,2544.8,2544.7,1.3104]
[1747722056292,0.78569,2544.7,2544.6,0.00392295]
[1747722056484,3.9734,2544.7,2543.5,3.2078]
[1747722056694,3.2078,2544.3,2543.8,0.78596]
[1747722056891,0.78592,2544.0,2543.7,2.09638]
[1747722057193,0.78595,2543.9,2543.8,1.3104]
[1747722057395,0.78593,2544.0,2543.8,1.3104]
[1747722058690,0.78594,2543.9,2543.8,1.3104]
[1747722058899,0.78598,2543.8,2543.5,12.29185]
[1747722059095,0.78598,2543.8,2543.6,1.2695]
[1747722059295,1.2921,2543.9,2543.6,1.2695]
[1747722059688,1.2921,2543.9,2543.6,2.05553]
[1747722059889,1.2921,2543.9,2543.7,0.78598]
[1747722060092,2.07805,2543.9,2543.7,1.2695]
[1747722060291,1.2921,2543.9,2543.7,2.05548]
[1747722060790,3.99374,2544.0,2543.8,1.2695]
[1747722061589,3.2078,2544.0,2543.8,1.2695]
[1747722061797,3.2078,2544.0,2543.9,0.6455]
[1747722062096,3.99371,2544.0,2543.9,0.6455]
[1747722062291,3.99371,2544.0,2543.9,1.9155]
[1747722062688,3.99371,2544.0,2543.9,1.27]
[1747722062893,0.78606,2543.6,2543.4,8.301]
[1747722063090,0.78606,2543.6,2543.4,2.05609]
[1747722063393,0.78606,2543.5,2543.4,1.27]
[1747722063597,11.5088,2543.7,2542.6,10.4437005]
[1747722063798,0.78619,2543.1,2542.9,1.27]
[1747722063993,0.78622,2543.0,2542.9,1.27]
[1747722065192,0.78628,2542.8,2542.7,0.6455]
[1747722065385,0.78628,2542.8,2542.7,1.9211]
[1747722065801,0.78628,2542.8,2542.7,1.2756]
[1747722068793,0.78636,2542.6,2542.2,0.677]
[1747722068992,0.79222611,2542.7,2542.4,0.78639]
[1747722069292,0.78634,2542.6,2542.5,1.3523]
[1747722069490,0.79222611,2542.7,2542.5,2.13867]
[1747722069796,0.79221611,2542.7,2542.5,2.13866]
[1747722070699,0.00589611,2542.7,2542.6,0.78634]
[1747722071203,0.79222611,2542.7,2542.5,2.13866]
[1747722071700,0.79222611,2542.7,2542.5,1.3523]
[1747722072001,0.00589611,2542.7,2542.5,2.13866]
[1747722072199,0.79221611,2542.7,2542.6,0.78634]
[1747722072396,0.00589611,2542.7,2542.6,0.78634]
[1747722073799,0.79220611,2542.7,2542.6,0.78634]
[1747722074000,0.00589611,2542.7,2542.6,0.78634]
[1747722074306,0.00589611,2542.7,2542.5,4.5601]
[1747722074307,0.78634,2542.6,2542.5,2.13866]
[1747722074603,0.78634,2542.6,2542.5,1.3523]
[1747722075103,0.79222611,2542.7,2542.5,1.3523]
[1747722075301,0.00589611,2542.7,2542.5,1.3523]
[1747722075502,0.78634,2542.6,2542.5,1.3523]
[1747722076203,2.06794,2542.6,2542.5,1.3523]
[1747722077309,0.78634,2542.6,2542.5,1.3523]
[1747722077504,0.78634,2542.6,2542.5,2.13867]
[1747722077808,0.78642,2542.4,2542.3,8.305]
[1747722078010,0.78642,2542.4,2542.1,1.47519]
[1747722078011,0.78646,2542.2,2542.1,0.6887]
[1747722078918,1.97170611,2542.7,2541.9,0.665]
[1747722079218,0.78666,2541.6,2541.3,0.78672]
[1747722079511,0.78671,2541.4,2541.3,1.2644]